bitfinex-derivatives/quotes_BNBF0:USTF0_20250807
["timestamp","ask_amount","ask_price","bid_price","bid_amount"]
[1754606493138,0.864041,783.6,783.48,0.94]
[1754606493438,0.85684407,783.88,783.48,0.94]
[1754606493642,0.86421491,783.87,783.48,0.94]
[1754606493941,0.86421491,783.86,783.48,0.94]
[1754606494146,0.86421491,783.85,783.48,0.94]
[1754606494341,0.86421491,783.84,783.48,0.94]
[1754606494540,0.86421491,783.83,783.48,0.94]
[1754606494737,0.86421491,783.82,783.48,0.94]
[1754606494937,0.86421491,783.81,783.48,0.94]
[1754606495136,0.86421491,783.8,783.48,0.94]
[1754606495341,0.86421491,783.79,783.48,0.94]
[1754606495542,0.86421491,783.78,783.48,0.94]
[1754606495741,0.86421491,783.77,783.48,0.94]
[1754606495937,0.86421491,783.76,783.48,0.94]
[1754606496142,0.86421491,783.75,783.48,0.94]
[1754606496342,0.86421491,783.74,783.48,0.94]
[1754606496540,0.86421491,783.73,783.48,0.94]
[1754606496738,0.86421491,783.72,783.48,0.94]
[1754606496943,0.86421491,783.71,783.48,0.94]
[1754606497240,0.86421491,783.7,783.48,0.94]
[1754606497539,0.86421491,783.69,783.48,0.94]
[1754606497742,0.86421491,783.68,783.48,0.94]
[1754606497938,0.86421491,783.67,783.48,0.94]
[1754606498140,0.86421491,783.66,783.48,0.94]
[1754606498338,0.86421491,783.65,783.48,0.94]
[1754606498540,0.85684407,783.94,783.48,0.94]
[1754606498840,0.86419708,783.93,783.48,0.94]
[1754606499044,0.86419708,783.92,783.48,0.94]
[1754606499239,0.86419708,783.91,783.48,0.94]
[1754606499442,0.86419708,783.9,783.48,0.94]
[1754606499640,0.22204711,784.01,783.48,0.94]
[1754606499641,0.86419708,783.89,783.48,0.94]
[1754606499842,0.86419708,783.88,783.48,0.94]
[1754606500039,0.86419708,783.87,783.48,0.94]
[1754606500244,0.86419708,783.86,783.48,0.94]
[1754606500442,0.86419708,783.85,783.48,0.94]
[1754606500640,0.86419708,783.84,783.48,0.94]
[1754606500945,0.86419708,783.83,783.48,0.94]
[1754606501245,0.86419708,783.82,783.48,0.94]
[1754606501445,0.86419708,783.81,783.48,0.94]
[1754606501643,0.86419708,783.8,783.48,0.94]
[1754606501943,0.86419708,783.79,783.48,0.94]
[1754606502143,0.86419708,783.78,783.48,0.94]
[1754606502345,0.86419708,783.77,783.48,0.94]
[1754606502546,0.86419708,783.76,783.48,0.94]
[1754606502742,0.86419708,783.75,783.48,0.94]
[1754606502946,0.86419708,783.74,783.48,0.94]
[1754606503146,0.86419708,783.73,783.48,0.94]
[1754606503343,0.86419708,783.72,783.48,0.94]
[1754606503544,0.86419708,783.71,783.48,0.94]
[1754606503748,0.86419708,783.7,783.48,0.94]
[1754606503946,0.86419708,783.69,783.54,0.85684407]
[1754606504145,0.86419708,783.68,783.55,0.85684407]
[1754606504347,0.86419708,783.67,783.53,0.85684407]
[1754606504546,0.86419708,783.66,783.53,0.85684407]
[1754606504746,0.86419708,783.65,783.54,0.85684407]
[1754606504948,0.86419708,783.64,783.53,0.85684407]
[1754606505244,0.86419708,783.63,783.52,0.85684407]
[1754606505448,0.85684407,784.32,783.5,0.85684407]
[1754606505650,1.72094629,784.31,783.5,0.85684407]
[1754606505848,0.85684407,784.29,783.52,0.85684407]
[1754606506049,0.86410222,784.28,783.51,0.85684407]
[1754606506251,0.85684407,784.25,783.57,0.85684407]
[1754606506546,0.86410222,784.24,783.59,0.85684407]
[1754606506750,0.86410222,784.23,783.59,0.85684407]
[1754606506950,0.85684407,784.32,783.6,0.85684407]
[1754606506951,0.86410222,784.22,783.6,0.85684407]
[1754606507151,0.86410222,784.21,783.66,0.85684407]
[1754606507348,0.86410222,784.2,783.64,0.85684407]
[1754606507649,0.86410222,784.19,783.66,0.85684407]
[1754606507852,0.86410222,784.18,783.66,0.85684407]
[1754606508148,0.86410222,784.17,783.66,0.85684407]
[1754606508351,0.86410222,784.16,783.7,0.85684407]
[1754606508548,0.86410222,784.15,783.66,0.85684407]
[1754606508750,0.86410222,784.14,783.66,0.85684407]
[1754606509051,0.86410222,784.13,783.66,0.85684407]
[1754606509353,0.86410222,784.12,783.64,0.85684407]
[1754606509651,0.86410222,784.11,783.64,0.85684407]
[1754606509851,0.86410222,784.1,783.64,0.85684407]
[1754606510051,0.86410222,784.09,783.64,0.85684407]
[1754606510252,0.22193594,784.48,783.64,0.85684407]
[1754606510454,0.86163564,784.47,783.63,0.85684407]
[1754606510653,0.86163564,784.46,783.63,0.85684407]
[1754606510851,0.86163564,784.45,783.63,0.85684407]
[1754606511049,0.86163564,784.44,783.63,0.85684407]
[1754606511255,0.8610867,784.43,783.61,0.85684407]
[1754606511449,0.8610867,784.42,783.61,0.85684407]
[1754606511750,0.8610867,784.41,783.61,0.85684407]
[1754606511948,0.8610867,784.4,783.61,0.85684407]
[1754606512152,0.8610867,784.39,783.61,0.85684407]
[1754606512349,0.8610867,784.38,783.6,0.85684407]
[1754606512649,0.8610867,784.37,783.6,0.85684407]
[1754606512850,0.8610867,784.36,783.6,0.85684407]
[1754606513149,0.8610867,784.35,783.6,0.85684407]
[1754606513349,0.8610867,784.34,783.6,0.85684407]
[1754606513550,0.8610867,784.33,783.57,0.85684407]
[1754606513852,0.8610867,784.32,783.56,0.85684407]
[1754606514152,0.86031128,784.31,783.56,0.85684407]
[1754606514351,0.86031128,784.31,783.48,0.94]
[1754606514352,0.86031128,784.3,783.55,0.85684407]
[1754606514552,0.86031128,784.29,783.55,0.85684407]
[1754606514749,0.86031128,784.28,783.55,0.85684407]
[1754606515054,0.86031128,784.27,783.55,0.85684407]
[1754606515254,0.86031128,784.26,783.55,0.85684407]
[1754606515452,0.86031128,784.25,783.55,0.85684407]
[1754606515650,0.86031128,784.24,783.55,0.85684407]
[1754606515854,0.86031128,784.23,783.55,0.85684407]
[1754606516154,0.86031128,784.22,783.55,0.85684407]
[1754606516352,0.86031128,784.21,783.54,0.85684407]
[1754606516550,0.86031128,784.2,783.54,0.85684407]
[1754606516749,0.85935336,784.19,783.55,0.85684407]
[1754606516949,0.22193594,784.48,783.55,1.62284407]
[1754606517152,0.85935336,784.47,783.55,1.62284407]
[1754606517351,0.85935336,784.46,783.55,0.766]
[1754606517555,0.85935336,784.45,783.55,0.766]
[1754606517851,0.85935336,784.44,783.55,1.62284407]
[1754606518050,0.85935336,784.43,783.55,1.62284407]
[1754606518256,0.85935336,784.42,783.55,0.766]
[1754606518455,0.85935336,784.41,783.55,1.62284407]
[1754606518652,0.85935336,784.4,783.55,0.766]
[1754606518856,0.85935336,784.39,783.55,0.766]
[1754606519053,0.85935336,784.38,783.56,0.832]
[1754606519253,0.85935336,784.37,783.56,0.832]
[1754606519557,0.85935336,784.36,783.56,0.832]
[1754606519753,0.85935336,784.35,783.56,0.832]
[1754606519957,0.85935336,784.34,783.56,0.832]
[1754606520157,0.85935336,784.33,783.56,0.832]
[1754606520456,0.85935336,784.32,783.56,0.832]
[1754606520657,0.85935336,784.31,783.56,0.832]
[1754606520857,0.85935336,784.3,783.56,0.832]
[1754606521157,0.85935336,784.29,783.56,0.832]
[1754606521357,0.85935336,784.28,783.56,0.832]
[1754606521555,0.85935336,784.27,783.56,0.832]
[1754606521754,0.85935336,784.26,783.56,0.832]
[1754606521954,0.85935336,784.25,783.57,0.899]
[1754606522155,0.85935336,784.24,783.57,0.899]
[1754606522354,0.85935336,784.23,783.57,0.899]
[1754606522658,0.85935336,784.22,783.57,0.899]
[1754606522954,0.85935336,784.21,783.57,0.899]
[1754606523154,0.85935336,784.2,783.57,0.899]
[1754606523354,0.22193594,784.48,783.57,0.899]
[1754606523560,0.85771062,784.47,783.57,0.899]
[1754606523756,0.85771062,784.46,783.57,0.899]
[1754606524057,0.85771062,784.45,783.57,0.899]
[1754606524255,0.85771062,784.44,783.57,0.899]
[1754606524557,0.85771062,784.43,783.57,0.899]
[1754606524755,0.85771062,784.42,783.57,0.899]
[1754606524954,0.85771062,784.41,783.57,0.899]
[1754606525154,0.85771062,784.4,783.57,0.899]
[1754606525459,0.85771062,784.39,783.57,0.899]
[1754606525657,0.85771062,784.38,783.57,0.899]
[1754606525856,0.85771062,784.37,783.57,0.899]
[1754606526156,0.85771062,784.36,783.57,0.899]
[1754606526359,0.85771062,784.35,783.57,0.899]
[1754606526556,0.85771062,784.34,783.57,0.899]
[1754606526755,0.85771062,784.33,783.57,0.899]
[1754606526959,0.85771062,784.32,783.57,0.899]
[1754606527159,0.85771062,784.31,783.57,0.899]
[1754606527364,0.85771062,784.3,783.57,0.899]
[1754606527560,0.85771062,784.29,783.57,0.899]
[1754606527762,0.85771062,784.28,783.57,0.899]
[1754606527963,0.85771062,784.27,783.57,0.899]
[1754606528162,0.85771062,784.26,783.57,0.899]
[1754606528365,0.85771062,784.25,783.57,0.899]
[1754606528667,0.85771062,784.24,783.57,0.899]
[1754606528963,0.22193594,784.48,783.57,0.899]
[1754606528964,0.85728112,784.23,783.57,0.899]
[1754606529167,0.85728112,784.22,783.57,0.899]
[1754606529364,0.85728112,784.21,783.57,0.899]
[1754606529566,0.85728112,784.2,783.57,0.899]
[1754606529765,0.22193594,784.48,783.57,0.899]
[1754606530065,0.8572248,784.47,783.57,0.899]
[1754606530267,0.8572248,784.46,783.57,0.899]
[1754606530469,0.8572248,784.45,783.57,0.899]
[1754606530669,0.8572248,784.44,783.57,0.899]
[1754606530968,0.8572248,784.43,783.57,0.899]
[1754606531168,0.8572248,784.42,783.57,0.899]
[1754606531467,0.8572248,784.41,783.57,0.899]
[1754606531769,0.85709928,784.4,783.57,0.899]
[1754606531965,0.85709928,784.39,783.57,0.899]
[1754606532167,0.85709928,784.38,783.57,0.899]
[1754606532369,0.85709928,784.37,783.57,0.899]
[1754606532670,0.85709928,784.36,783.57,0.899]
[1754606532870,0.85709928,784.35,783.57,0.899]
[1754606533171,0.85709928,784.34,783.57,0.899]
[1754606533372,0.85709928,784.33,783.57,0.899]
[1754606533569,0.85709928,784.32,783.57,0.899]
[1754606533769,0.85709928,784.31,783.57,0.899]
[1754606533966,0.85709928,784.3,783.57,0.899]
[1754606534169,0.85709928,784.29,783.57,0.899]
[1754606534367,0.85709928,784.28,783.57,0.899]
[1754606534571,0.85709928,784.27,783.57,0.899]
[1754606534772,0.85709928,784.26,783.57,0.899]
[1754606534969,0.85709928,784.25,783.57,0.899]
[1754606535171,0.85709928,784.24,783.57,0.899]
[1754606535471,0.85709928,784.23,783.57,0.899]
[1754606535671,0.85709928,784.22,783.57,0.899]
[1754606535868,0.22193594,784.48,783.57,0.899]
[1754606536072,0.85705755,784.47,783.56,0.832]
[1754606536272,0.85705755,784.46,783.56,0.832]
[1754606536469,0.85705004,784.45,783.56,0.832]
[1754606536768,0.85705004,784.44,783.56,0.832]
[1754606536973,0.85705004,784.43,783.56,0.832]
[1754606537172,0.85705004,784.42,783.56,0.832]
[1754606537367,0.85705004,784.41,783.56,0.832]
[1754606537571,0.85705004,784.4,783.56,0.832]
[1754606537768,0.85705004,784.39,783.56,0.832]
[1754606538072,0.85705004,784.38,783.56,0.832]
[1754606538273,0.85705004,784.37,783.56,0.832]
[1754606538475,0.85705004,784.36,783.56,0.832]
[1754606538673,0.85705004,784.35,783.57,0.764]
[1754606538870,0.85705004,784.34,783.57,0.764]
[1754606539073,0.85705004,784.33,783.57,0.764]
[1754606539270,0.85705004,784.32,783.57,0.764]
[1754606539470,0.85705004,784.31,783.57,0.764]
[1754606539673,0.22193594,784.48,783.57,0.764]
[1754606539674,0.85705004,784.3,783.57,0.764]
[1754606539869,0.22193594,784.48,783.57,0.764]
[1754606539870,0.85705004,784.29,783.57,0.764]
[1754606540071,0.85705004,784.28,783.57,0.764]
[1754606540374,0.85705004,784.27,783.57,0.764]
[1754606540570,0.85705004,784.26,783.57,0.764]
[1754606540772,0.85705004,784.25,783.57,0.764]
[1754606540976,0.85705004,784.24,783.57,0.764]
[1754606541170,0.85705004,784.23,783.57,0.764]
[1754606541472,0.85705004,784.22,783.57,0.764]
[1754606541675,0.85705004,784.21,783.57,0.764]
[1754606541876,0.85705004,784.2,783.57,0.764]
[1754606542075,0.85705004,784.19,783.57,0.764]
[1754606542271,0.85705004,784.18,783.57,0.764]
[1754606542477,0.85705004,784.17,783.57,0.764]
[1754606542677,0.85705004,784.16,783.57,0.764]
[1754606542877,0.85705004,784.15,783.57,0.764]
[1754606543175,0.85705004,784.14,783.57,0.764]
[1754606543374,0.85705004,784.13,783.57,0.764]
[1754606543574,0.85705004,784.12,783.57,0.764]
[1754606543777,0.22193594,784.48,783.57,0.764]
[1754606543976,0.85754929,784.47,783.57,0.764]
[1754606544177,0.85754929,784.46,783.57,0.764]
[1754606544375,0.85754929,784.45,783.57,0.764]
[1754606544578,0.85754929,784.44,783.57,0.764]
[1754606544781,0.85754929,784.43,783.57,0.764]
[1754606544976,0.85754929,784.42,783.57,0.764]
[1754606545276,0.85754929,784.41,783.57,0.764]
[1754606545480,0.85754929,784.4,783.57,0.764]
[1754606545680,0.85754929,784.39,783.57,0.764]
[1754606545881,0.85754929,784.38,783.57,0.764]
[1754606546181,0.85754929,784.37,783.57,0.764]
[1754606546481,0.22193594,784.48,783.57,0.764]
[1754606546482,0.85754929,784.36,783.57,0.764]
[1754606546678,0.85754929,784.35,783.57,0.764]
[1754606546875,0.85754929,784.34,783.57,0.764]
[1754606547078,0.85754929,784.33,783.57,0.764]
[1754606547277,0.85754929,784.32,783.57,0.764]
[1754606547578,0.85754929,784.31,783.57,0.764]
[1754606547780,0.85754929,784.3,783.57,0.764]
[1754606547980,0.85754929,784.29,783.58,0.757]
[1754606548177,0.85754929,784.28,783.58,0.757]
[1754606548378,0.85754929,784.27,783.58,0.757]
[1754606548681,0.85754929,784.26,783.58,0.757]
[1754606548881,0.85754929,784.25,783.58,0.757]
[1754606549082,0.22193594,784.48,783.58,0.757]
[1754606549083,0.85754929,784.24,783.58,0.757]
[1754606549278,0.85754929,784.23,783.58,0.757]
[1754606549482,0.85754929,784.22,783.58,0.757]
[1754606549684,0.85754929,784.21,783.58,0.757]
[1754606549983,0.85754929,784.2,783.58,0.757]
[1754606550180,0.85754929,784.19,783.58,0.757]
[1754606550377,0.85754929,784.18,783.58,0.757]
[1754606550577,0.85754929,784.17,783.58,0.757]
[1754606550778,0.85754929,784.16,783.58,0.757]
[1754606550979,0.85754929,784.15,783.58,0.757]
[1754606551179,0.85754929,784.14,783.58,0.757]
[1754606551384,0.85754929,784.13,783.58,0.757]
[1754606551583,0.85754929,784.12,783.58,0.757]
[1754606551784,0.85754929,784.11,783.58,0.757]
[1754606552082,0.85754929,784.1,783.58,0.757]
[1754606552279,0.22193594,784.48,783.58,0.757]
[1754606552485,0.85870118,784.47,783.58,0.757]
[1754606552679,0.85870118,784.46,783.58,0.757]
[1754606552884,0.85870118,784.45,783.58,0.757]
[1754606553183,0.22193594,784.48,783.58,0.757]
[1754606553184,0.85870118,784.44,783.58,0.757]
[1754606553387,0.85870118,784.43,783.58,0.757]
[1754606553584,0.85870118,784.42,783.58,0.757]
[1754606553781,0.85870118,784.41,783.58,0.757]
[1754606553986,0.85870118,784.4,783.58,0.757]
[1754606554184,0.85870118,784.39,783.58,0.757]
[1754606554485,0.85870118,784.38,783.58,0.757]
[1754606554686,0.85870118,784.37,783.58,0.757]
[1754606554882,0.85870118,784.36,783.58,0.757]
[1754606555082,0.85870118,784.35,783.59,1.068]
[1754606555282,0.85870118,784.34,783.59,1.068]
[1754606555484,0.85870118,784.33,783.59,1.068]
[1754606555686,0.85870118,784.32,783.59,1.068]
[1754606555986,0.85870118,784.31,783.59,1.068]
[1754606556182,0.85870118,784.3,783.59,1.068]
[1754606556486,0.85870118,784.29,783.59,1.068]
[1754606556683,0.85870118,784.28,783.59,1.068]
[1754606556887,0.85870118,784.27,783.59,1.068]
[1754606557087,0.85870118,784.26,783.59,1.068]
[1754606557287,0.85870118,784.25,783.59,1.068]
[1754606557488,0.85870118,784.24,783.59,1.068]
[1754606557684,0.85870118,784.23,783.59,1.068]
[1754606557886,0.85870118,784.22,783.59,1.068]
[1754606558089,0.85870118,784.21,783.59,1.068]
[1754606558289,0.85870118,784.2,783.59,1.068]
[1754606558486,0.85870118,784.19,783.59,1.068]
[1754606558686,0.85870118,784.18,783.59,1.068]
[1754606558994,0.22193594,784.48,783.59,1.068]
[1754606558995,0.85870118,784.17,783.59,1.068]
[1754606559190,0.22193594,784.48,783.59,1.068]
[1754606559492,0.85985986,784.47,783.59,1.92117024]
[1754606559784,0.85985986,784.46,783.59,1.92117024]
[1754606559991,0.85985986,784.45,783.59,1.92117024]
[1754606560194,0.85985986,784.44,783.6,0.85317024]
[1754606560491,0.85985986,784.43,783.61,0.85317024]
[1754606560690,0.85985986,784.42,783.61,0.85317024]
[1754606560893,0.85985986,784.41,783.61,0.85317024]
[1754606561195,0.85985986,784.4,783.62,0.903]
[1754606561493,0.85985986,784.39,783.63,0.85317024]
[1754606561693,0.85985986,784.38,783.63,0.85317024]
[1754606561893,0.85985986,784.37,783.63,0.85317024]
[1754606562189,0.85985986,784.36,783.63,0.85317024]
[1754606562393,0.85985986,784.35,783.66,0.85317024]
[1754606562589,0.85985986,784.34,783.66,0.85317024]
[1754606562791,0.85985986,784.33,783.66,0.85317024]
[1754606562994,0.85985986,784.32,783.66,0.85317024]
[1754606563290,0.85985986,784.31,783.67,0.85317024]
[1754606563492,0.85985986,784.3,783.73,0.85317024]
[1754606563691,0.85985986,784.29,783.73,0.85317024]
[1754606563992,0.85985986,784.28,783.73,0.85317024]
[1754606564192,0.85985986,784.27,783.73,0.85317024]
[1754606564496,0.86203305,784.26,783.73,0.85317024]
[1754606564694,0.86203305,784.25,783.73,0.85317024]
[1754606564894,0.86203305,784.24,783.73,0.85317024]
[1754606565092,0.86203305,784.23,783.73,0.85317024]
[1754606565293,0.86203305,784.22,783.74,0.85317024]
[1754606565595,0.86203305,784.21,783.72,0.85317024]
[1754606565890,0.86203305,784.2,783.72,0.85317024]
[1754606566095,0.86203305,784.19,783.72,0.85317024]
[1754606566295,0.86203305,784.18,783.72,0.85317024]
[1754606566496,0.86203305,784.17,783.72,0.85317024]
[1754606566695,0.86203305,784.16,783.72,0.85317024]
[1754606566893,0.86203305,784.15,783.73,1.011]
[1754606567194,0.86203305,784.14,783.73,1.011]
[1754606567397,0.22193594,784.48,783.73,1.011]
[1754606567398,0.86203305,784.13,783.73,1.011]
[1754606567597,0.86203305,784.12,783.73,1.011]
[1754606567893,0.86203305,784.11,783.73,1.011]
[1754606568097,0.86203305,784.1,783.73,1.011]
[1754606568299,0.86203305,784.09,783.73,1.011]
[1754606568493,0.85317024,784.31,783.73,1.011]
[1754606568494,0.86203305,784.08,783.73,1.011]
[1754606568798,0.86203305,784.07,783.73,1.011]
[1754606568998,0.86203305,784.06,783.73,1.011]
[1754606569194,0.85317024,784.32,783.73,1.011]
[1754606569397,0.86296508,784.31,783.73,1.011]
[1754606569599,0.86296508,784.3,783.73,1.011]
[1754606569898,0.86296508,784.29,783.73,1.011]
[1754606570098,0.86296508,784.28,783.73,1.011]
[1754606570300,0.86296508,784.27,783.73,1.011]
[1754606570594,0.86296508,784.26,783.73,1.011]
[1754606570800,0.86296508,784.25,783.73,1.011]
[1754606570994,0.86296508,784.24,783.73,1.011]
[1754606571299,0.86296508,784.23,783.73,1.011]
[1754606571496,0.86296508,784.22,783.73,1.011]
[1754606571692,0.85317024,784.33,783.73,1.011]
[1754606571693,0.86296508,784.21,783.73,1.011]
[1754606571900,0.86296508,784.2,783.73,1.011]
[1754606572199,0.86296508,784.19,783.73,1.011]
[1754606572397,0.86296508,784.18,783.73,1.011]
[1754606572625,0.86296508,784.17,783.73,1.011]
[1754606572896,0.86296508,784.16,783.73,1.011]
[1754606573200,0.86296869,784.15,783.73,1.011]
[1754606573500,0.86296869,784.14,783.73,1.011]
[1754606573697,0.86296869,784.13,783.73,1.011]
[1754606573901,0.86296869,784.12,783.74,0.912]
[1754606574101,0.86296869,784.11,783.74,0.912]
[1754606574396,0.86296869,784.1,783.74,0.912]
[1754606574596,0.86296869,784.09,783.74,0.912]
[1754606574803,0.86296869,784.08,783.74,0.912]
[1754606575102,0.86296869,784.07,783.74,0.912]
[1754606575301,0.86296869,784.06,783.74,0.912]
[1754606575501,0.85317024,784.34,783.74,0.912]
[1754606575700,0.86301843,784.33,783.74,0.912]
[1754606575903,0.86301843,784.32,783.74,0.912]
[1754606576102,0.86301843,784.31,783.74,0.912]
[1754606576303,0.86301843,784.3,783.74,0.912]
[1754606576498,0.86301843,784.29,783.74,0.912]
[1754606576803,0.86301843,784.28,783.74,0.912]
[1754606577001,0.86301843,784.27,783.74,0.912]
[1754606577202,0.86301843,784.26,783.74,0.912]
[1754606577403,0.86301843,784.25,783.74,0.912]
[1754606577603,0.86301843,784.24,783.74,0.912]
[1754606577802,0.85317024,784.33,783.74,0.912]
[1754606577803,0.86301843,784.23,783.74,0.912]
[1754606578103,0.86301843,784.22,783.74,0.912]
[1754606578303,0.86301843,784.21,783.74,0.912]
[1754606578504,0.86301843,784.2,783.74,0.912]
[1754606578704,0.86301843,784.19,783.74,0.912]
[1754606578905,0.86301843,784.18,783.74,0.912]
[1754606579104,0.86301843,784.17,783.74,0.912]
[1754606579406,0.86301843,784.16,783.74,0.912]
[1754606579603,0.85317024,784.26,783.74,0.912]
[1754606579604,0.86301843,784.15,783.74,0.912]
[1754606579804,0.86301843,784.14,783.74,0.912]
[1754606580001,0.86301843,784.13,783.74,0.912]
[1754606580305,0.86301843,784.12,783.74,0.912]
[1754606580505,0.86301843,784.11,783.74,0.912]
[1754606580801,0.86301843,784.1,783.74,0.912]
[1754606581007,0.86301843,784.09,783.74,0.912]
[1754606581313,0.86301843,784.08,783.74,0.912]
[1754606581506,0.86301843,784.07,783.74,0.912]
[1754606581807,0.86301843,784.06,783.74,0.912]
[1754606582106,0.86301843,784.05,783.74,0.912]
[1754606582303,0.86301843,784.04,783.74,0.912]
[1754606582507,0.86301843,784.03,783.74,0.912]
[1754606582705,0.86301843,784.02,783.74,0.912]
[1754606582903,0.86301843,784.01,783.74,0.912]
[1754606583103,0.86301843,784.0,783.74,0.912]
[1754606583406,0.86301843,783.99,783.74,0.912]
[1754606583604,0.86301843,783.98,783.74,0.912]
[1754606583807,0.86301843,783.97,783.74,0.912]
[1754606584008,0.86301843,783.96,783.74,0.912]
[1754606584210,0.86301843,783.95,783.74,0.912]
[1754606584406,0.86301843,783.94,783.74,0.912]
[1754606584707,0.85317024,784.25,783.74,0.912]
[1754606584906,0.86287668,784.24,783.74,0.912]
[1754606585105,0.86287668,784.23,783.74,0.912]
[1754606585305,0.86287668,784.22,783.75,0.682]
[1754606585504,0.86287668,784.21,783.75,0.682]
[1754606585705,0.86287668,784.2,783.75,0.682]
[1754606585910,0.86287668,784.19,783.75,0.682]
[1754606586110,0.86287668,784.18,783.75,0.682]
[1754606586405,0.86287668,784.17,783.75,0.682]
[1754606586608,0.86287668,784.16,783.75,0.682]
[1754606586808,0.86287668,784.15,783.75,0.682]
[1754606587006,0.86287668,784.14,783.75,0.682]
[1754606587212,0.86287668,784.13,783.75,0.682]
[1754606587505,0.86287668,784.12,783.75,0.682]
[1754606587709,0.86287668,784.11,783.75,0.682]
[1754606587911,0.86287668,784.1,783.75,0.682]
[1754606588110,0.86287668,784.09,783.75,0.682]
[1754606588313,0.86287668,784.08,783.75,0.682]
[1754606588512,0.86287668,784.07,783.75,0.682]
[1754606588811,0.86287668,784.06,783.75,0.682]
[1754606589011,0.86287668,784.05,783.75,0.682]
[1754606589211,0.86287668,784.04,783.75,0.682]
[1754606589412,0.86287668,784.03,783.75,0.682]
[1754606589612,0.86287668,784.02,783.75,0.682]
[1754606589811,0.86287668,784.01,783.75,0.682]
[1754606590009,0.86287668,784.0,783.75,0.682]
[1754606590213,0.86287668,783.99,783.75,0.682]
[1754606590409,0.86287668,783.98,783.75,0.682]
[1754606590614,0.86287668,783.97,783.75,0.682]
[1754606590910,0.86287668,783.96,783.75,0.682]
[1754606591130,0.86287668,783.95,783.75,0.682]
[1754606591314,0.86287668,783.94,783.75,0.682]
[1754606591510,0.86287668,783.93,783.75,0.682]
[1754606591714,0.85317024,784.21,783.75,0.682]
[1754606591912,0.8627203,784.2,783.75,0.682]
[1754606592514,0.86275574,784.19,783.75,0.682]
[1754606592817,0.86275574,784.18,783.75,0.682]
[1754606593115,0.86275574,784.17,783.75,0.682]
[1754606593317,0.86275574,784.16,783.75,0.682]
[1754606593517,0.86275574,784.15,783.75,0.682]
[1754606593813,0.86275574,784.14,783.75,0.682]
[1754606594016,0.86275574,784.13,783.75,0.682]
[1754606594217,0.86275574,784.12,783.75,0.682]
[1754606594414,0.86275574,784.11,783.75,0.682]
[1754606594618,0.86275574,784.1,783.75,0.682]
[1754606594915,0.86275574,784.09,783.75,0.682]
[1754606595114,0.86275574,784.08,783.75,0.682]
[1754606595315,0.86275574,784.07,783.75,0.682]
[1754606595519,0.86275574,784.06,783.75,0.682]
[1754606595719,0.86275574,784.05,783.75,0.682]
[1754606595919,0.86275574,784.04,783.75,0.682]
[1754606596122,0.85317024,784.24,783.75,0.682]
[1754606596322,0.86273296,784.23,783.75,0.682]
[1754606596621,0.86273296,784.22,783.75,0.682]
[1754606596817,0.86273296,784.21,783.75,0.682]
[1754606597021,0.86273296,784.2,783.75,0.682]
[1754606597216,0.22193594,784.48,783.75,0.682]
[1754606597217,0.86273296,784.19,783.75,0.682]
[1754606597521,0.86273296,784.18,783.75,0.682]
[1754606597717,0.86273296,784.17,783.75,0.682]
[1754606597916,0.86273296,784.16,783.75,0.682]
[1754606598116,0.86273296,784.15,783.75,0.682]
[1754606598318,0.86273296,784.14,783.75,0.682]
[1754606598621,0.86273296,784.13,783.75,0.682]
[1754606598825,0.86273296,784.12,783.75,0.682]
[1754606599025,0.86273296,784.11,783.75,0.682]
[1754606599324,0.86273296,784.1,783.75,0.682]
[1754606599523,0.86273296,784.09,783.75,0.682]
[1754606599721,0.86273296,784.08,783.76,1.031]
[1754606599925,0.86273296,784.07,783.76,1.031]
[1754606600221,0.86273296,784.06,783.76,1.031]
[1754606600424,0.86273296,784.05,783.76,1.031]
[1754606600623,0.86273296,784.04,783.76,1.031]